Cogmind - Beta 13 @@@ ROGUE MODE // 2024.04.05 @ 06:05:57 Player: kirkalish Result: Destroyed by G-34 Mercenary with Small Laser Performance ------------- Evolutions (1) 500 Regions Visited (2) 400 Robots Destroyed (56) 280 Value Destroyed (1731) 1731 Prototype IDs (5) 100 Alien Tech Used (0) 0 Bonus (0) 0 TOTAL SCORE: 3011 Bonus ------- None Cogmind --------- Core Integrity 0/400 Matter 280/300 Energy 415/415 System Corruption 2% Temperature Cool (6) Movement Hovering (116) Ox1 Location -9/Materials Parts ------- > --- POWER (2) -------- Ion Engine Improved Ion Engine > --- PROPULSION (2) --- Airjet Airjet > --- UTILITY (3) ------ Large Storage Unit Weight Redist. System Signal Interpreter > --- WEAPON (2) ------- Autogun Heavy Flail > --- INVENTORY (15) --- Improved Treads Sensor Array Shield Generator Improved EM Shotgun Improved Medium Laser Improved Medium Laser Improved Medium Laser Heavy Assault Rifle Heavy Assault Rifle Heavy Assault Rifle Assault Cannon Welding Torch Heavy Flail Peak State ------------ > --- POWER ------------ Improved Ion Engine Improved Ion Engine > --- PROPULSION ------- Airjet Airjet > --- UTILITY ---------- Large Storage Unit Weight Redist. System Signal Interpreter > --- WEAPON ----------- Assault Cannon Assault Cannon > --- INVENTORY -------- Light Treads Sensor Array Improved EM Shotgun Light EM Pulse Cannon Beam Cannon Heavy Assault Rifle Heavy Assault Rifle Heavy Assault Rifle Heavy Assault Rifle Welding Torch Welding Torch Plasma Cutter [Rating: 22] Favorites ----------- Power Improved Ion Engine Engine Improved Ion Engine Propulsion Light Treads Treads Light Treads Wheel Wheel Hover Unit Airjet Flight Unit VTOL Module Utility Large Storage Unit Device Weight Redist. System Storage Large Storage Unit Processor Signal Interpreter Weapon Light Assault Rifle Energy Gun Improved EM Shotgun Energy Cannon Beam Cannon Ballistic Gun Light Assault Rifle Ballistic Cannon Assault Cannon Launcher EMP Blaster Special Weapon Welding Torch Impact Weapon Heavy Flail Build | -11 -10 -9 ------- Run | Yrd Mat Mat Slots Evolved 2 | . . 2 Power 1 | . . 1 Propulsion . | . . . Utility 1 | . . 1 Weapon . | . . . Parts Attached 93 | 6 25 62 Power 16 | 1 5 10 Engine 16 | 1 5 10 Core . | . . . Reactor . | . . . Propulsion 24 | 2 2 20 Treads 13 | 2 . 11 Leg . | . . . Wheel 3 | . 2 1 Hover 5 | . . 5 Flight 3 | . . 3 Utility 13 | 1 5 7 Device 7 | . 3 4 Storage 5 | 1 2 2 Processor 1 | . . 1 Hackware . | . . . Protection . | . . . Artifact . | . . . Weapon 40 | 2 13 25 Energy Gun 7 | . 3 4 Energy Cannon 3 | . 2 1 Ballistic Gun 11 | 2 3 6 Ballistic Cannon 5 | . . 5 Launcher 1 | . . 1 Special Weapon 12 | . 5 7 Impact Weapon 1 | . . 1 Slashing Weapon . | . . . Piercing Weapon . | . . . Special Melee Weapon . | . . . Unidentified Prototypes 2 | . . 2 Corrupted Parts 1 | . . 1 System Corruption 1 | . . 1 Parts Lost 15 | . 5 10 Power 3 | . . 3 Propulsion 3 | . 1 2 Utility 2 | . 1 1 Weapon 7 | . 3 4 Highest Loss Streak 5 | . 3 5 To Critical Strikes . | . . . Average Slot Usage (%) 90 | . 87 91 Engine 17 | . 13 19 Treads 12 | . 16 11 Wheel 2 | . 6 1 Hover 4 | . . 6 Flight 1 | . . 1 Device 8 | . 10 8 Storage 13 | . 12 14 Processor 4 | . . 6 Energy Gun 5 | . 6 5 Energy Cannon 1 | . 3 . Ballistic Gun 8 | . 14 5 Ballistic Cannon 2 | . . 3 Special Weapon 4 | . 3 5 Impact Weapon 1 | . . 1 Naked Turns . | . . . Heaviest Build 45 | 13 32 45 Greatest Support 40 | 40 40 40 Greatest Overweight (x) 11 | . 1 11 Average Overweight (x) 1 | . . 1 Largest Inventory Capacity 15 | 8 15 15 Average Capacity 13 | 7 9 15 Most Carried 15 | 5 6 15 Average Carried 10 | 1 3 13 Final Capacity 15 | 8 15 15 Final Carried 13 | . 4 13 Class Distribution -------------------- 83% | Mutant 16% | Scavenger-Mutant Dominant Class ---------------- Mutant | -10/Materials Mutant | -9/Materials Resources | -11 -10 -9 ----------- Run | Yrd Mat Mat Matter Collected 1727 | 233 440 1054 Remotely . | . . . Salvage Created 2114 | . 632 1482 Parts 134 | . 47 87 Haulers Intercepted 1 | . . 1 Recyclers Shooed 4 | . . 4 Parts Field Recycled 4 | . . 4 Retrieved Matter 12 | . . 12 Parts Self-Destructed . | . . . Prevented . | . . . Kills | -11 -10 -9 ------- Run | Yrd Mat Mat Combat Hostiles Destroyed 43 | . 17 26 Guns 30 | . 14 16 Cannons 6 | . 2 4 AOE 6 | . 1 5 Classes Destroyed 8 | . 4 4 Worker 1 | . . 1 Hauler 1 | . . 1 Recycler 3 | . . 3 Operator 2 | . 1 1 Watcher 6 | . 1 5 Swarmer 3 | . 3 . Grunt 33 | . 14 19 Sentry 7 | . . 7 Best Kill Streak 4 | . 3 4 Combat Bots Only 3 | . 3 3 Max Kills in Single Turn 2 | . 1 2 Gunslinging 1 | . . 1 Exploded 1 | . 1 1 Melee . | . . . Uniques/NPCs Destroyed . | . . . Combat | -11 -10 -9 -------- Run | Yrd Mat Mat Hostile Shots Fired 342 | . 111 231 Missed 104 | . 38 66 Damage Taken 3077 | . 782 2295 Core 505 | . 102 403 Absorbed by Shields 133 | . 133 . Regen/Repaired (Parts) 104 | . 25 79 Core Remaining (%) 79 | 100 59 . Volleys Fired 209 | . 67 142 Largest 2 | . 2 2 Hottest 105 | . 105 90 Shots Fired 354 | . 121 233 Gun 250 | . 99 151 Cannon 49 | . 12 37 Launcher 3 | . . 3 Special 52 | . 10 42 Kinetic 185 | . 52 133 Thermal 77 | . 22 55 Explosive . | . . . Electromagnetic 92 | . 47 45 Robot Hit Streak 16 | . 7 16 Robot Miss Streak 9 | . 5 9 Penetration Max . | . . . Secondary Targets 5 | . 2 3 Max Gunslinging Chain 1 | . 1 1 Shots Hit Robots 186 | . 62 124 Core Hits 86 | . 25 61 Critical Kills . | . . . Critical Parts Destroyed 3 | . . 3 Critical Strikes 4 | . . 4 Destroy 1 | . . 1 Blast 1 | . . 1 Smash 2 | . . 2 Melee Attacks 11 | . . 11 Impact 11 | . . 11 Slashing . | . . . Piercing . | . . . Sneak Attacks 1 | . . 1 Combat Hostiles . | . . . Follow-up Attacks . | . . . Damage Inflicted 3411 | . 837 2574 Guns 2079 | . 684 1395 Cannons 585 | . 103 482 Explosions 335 | . . 335 Melee 360 | . . 360 Ramming 8 | . 8 . Kinetic 1516 | . 254 1262 Thermal 482 | . 145 337 Explosive . | . . . Electromagnetic 1045 | . 430 615 Impact 360 | . . 360 Slashing . | . . . Piercing . | . . . Highest Corruption 2 | . . 2 Average Corruption 1 | . . 1 Corruption Purged . | . . . Corruption Blocked . | . . . Effects 35 | . . 35 Message Errors 9 | . . 9 Matter Fused 9 | . . 9 Heat Flow Errors 5 | . . 5 Energy Discharges 7 | . . 7 Data Loss (minor) 2 | . . 2 Data Loss (major) 2 | . . 2 Weapon Failures 1 | . . 1 Overload Shots . | . . . Overflow Damage 257 | . . 257 Projectiles . | . . . Explosions . | . . . Melee 257 | . . 257 Knockbacks 5 | . . 5 Impact 2 | . . 2 Kinetic 3 | . . 3 Secondary . | . . . Self-Inflicted Damage 119 | . 4 115 Shots 5 | . . 5 Rammed 1 | . 1 . Targets Rammed 1 | . 1 . Kicked . | . . . Crushed . | . . . Highest Temperature 263 | . 202 263 Average Temperature 58 | . 55 60 Received Heat Transfer 1367 | . 260 1107 Siege Activations . | . . . Robots Corrupted . | . . . Combat Hostiles . | . . . Parts Fried 6 | . 1 5 Impact Corruptions 12 | . . 12 Robots Melted . | . . . Combat Hostiles . | . . . Parts Melted 1 | . 1 . Heat Transferred 954 | . 370 584 Parts Sabotaged . | . . . Parts Stolen . | . . . Parts Stripped . | . . . Power Chain Reactions 4 | . . 4 Alert | -11 -10 -9 ------- Run | Yrd Mat Mat Peak Influence 338 | . 180 338 Initial 31 | . . 31 Average 170 | . 72 213 Maximum Alert Level 1 | . . 1 Low Security (%) 51 | 100 100 30 Level 1 48 | . . 69 Level 2 . | . . . Level 3 . | . . . Level 4 . | . . . Level 5 . | . . . High Security . | . . . Max Security . | . . . Squads Dispatched 12 | . 5 7 Investigation 8 | . 4 4 Extermination . | . . . Reinforcement 4 | . 1 3 Assault . | . . . Garrison . | . . . Intercept . | . . . Searches Triggered . | . . . Construction Impeded . | . . . Haulers Reinforced . | . . . Active Scanning Responses . | . . . Cargo Convoy Interrupts . | . . . Stealth | -11 -10 -9 --------- Run | Yrd Mat Mat Distress Signals 6 | . 1 5 Communications Jammed . | . . . Distress Signals . | . . . Times Spotted 68 | . 23 45 Peak Tracking Total 5 | . 4 5 Tactical Retreats 5 | . 2 3 Traps | -11 -10 -9 ------- Run | Yrd Mat Mat Traps Triggered 3 | . 1 2 Indirectly . | . . . Trap Hack Attempts . | . . . Triggered . | . . . Disarmed 6 | . . 6 Reprogrammed . | . . . Reused . | . . . Traps Extracted . | . . . Installed . | . . . Triggered . | . . . Machines | -11 -10 -9 ---------- Run | Yrd Mat Mat Machines Disabled 5 | . 2 3 Max in Single Turn 1 | . 1 1 Machines Repaired . | . . . Machines Dismantled 1 | . 1 . Machines Sabotaged . | . . . Overloaded Fab Kills . | . . . Hacking | -11 -10 -9 --------- Run | Yrd Mat Mat Machines Accessed 16 | . 7 9 Terminals 10 | . 4 6 Fabricators . | . . . Repair Stations 2 | . 1 1 Recycling Units 3 | . 2 1 Scanalyzers 1 | . . 1 Garrison Access . | . . . Total Hacks 63 | . 21 42 Successful 41 | . 11 30 Failed 22 | . 10 12 Catastrophic 4 | . 1 3 Database Lockouts . | . . . Manual . | . . . Terminals 35 | . 13 22 Fabricators . | . . . Repair Stations 10 | . 4 6 Recycling Units 5 | . 4 1 Scanalyzers 13 | . . 13 Garrison Access . | . . . Terminal Hacks 19 | . 7 12 Record 2 | . . 2 Robot Analysis 1 | . . 1 Prototype ID Bank 1 | . . 1 Emergency Access Points 2 | . 1 1 Alert Level 1 | . 1 . Unreport Threat 1 | . 1 . Locate Traps 2 | . 1 1 Disarm Traps 1 | . . 1 Dispatch Records 1 | . . 1 Maintenance Status 2 | . 2 . Hauler Manifests 2 | . . 2 Registered Components 1 | . . 1 Zone Layout 2 | . 1 1 Fabricator Hacks . | . . . Repair Station Hacks 6 | . 2 4 Scan Component 3 | . 1 2 Repair 3 | . 1 2 Recycling Unit Hacks 3 | . 2 1 Retrieve Components 3 | . 2 1 Scanalyzer 13 | . . 13 Insert Component 7 | . . 7 Analyze 6 | . . 6 Garrison Access Hacks . | . . . Unauthorized Hacks . | . . . Terminals . | . . . Fabricators . | . . . Repair Stations . | . . . Recycling Units . | . . . Scanalyzers . | . . . Garrison Access . | . . . Data Cores Recovered . | . . . Used . | . . . Hacking Detections 13 | . 4 9 Full Trace Events 10 | . 3 7 Feedback Events . | . . . Feedback Blocked . | . . . Robot Schematics Acquired . | . . . Robots Built . | . . . Authchips . | . . . Time . | . . . Total Robot Build Rating . | . . . Part Schematics Acquired 6 | . . 6 Parts Built . | . . . Authchips . | . . . Time . | . . . Total Part Build Rating . | . . . Parts Repaired 3 | . 1 2 Time 84 | . 26 58 Parts Recycled . | . . . Recycled Matter . | . . . Retrieved Matter . | . . . Retrieved Components 30 | . 20 10 Parts Scanalyzed 6 | . . 6 Part Schematics Acquired 6 | . . 6 Parts Damaged . | . . . Bothacking | -11 -10 -9 ------------ Run | Yrd Mat Mat Used RIF Installer . | . . . Robots Hacked . | . . . Non-combat . | . . . Combat . | . . . Robot Hacks Applied . | . . . Relay Couplers Released . | . . . Fabnet Peak Effective % . | . . . Robots Rewired . | . . . Allies Hacked . | . . . Hacks Repelled . | . . . Allies | -11 -10 -9 -------- Run | Yrd Mat Mat Total Allies . | . . . Largest Group . | . . . Highest-Rated Group . | . . . Highest-Rated Ally . | . . . Total Orders . | . . . Ally Attacks . | . . . Total Damage . | . . . Kills . | . . . Allies Corrupted . | . . . Allies Melted . | . . . Intel | -11 -10 -9 ------- Run | Yrd Mat Mat Robot Analysis Total 1 | . . 1 Derelict Logs Recovered . | . . . Drone Launches . | . . . Drone Recoveries . | . . . Exploration | -11 -10 -9 ------------- Run | Yrd Mat Mat Turns Passed 5385 | 49 1587 3749 Spaces Moved 2451 | 35 842 1574 Core 19 | 16 . 3 Treads 1292 | 19 574 699 Legs . | . . . Wheels 403 | . 268 135 Hover 663 | . . 663 Flight 74 | . . 74 Fastest Speed 50 | 50 95 95 Average Speed 177 | 109 150 192 Slowest Speed 775 | 160 240 775 Overloaded Moves . | . . . Propulsion Burnouts . | . . . Robots Hopped . | . . . Cave-ins Triggered . | . . . Exploration Rate (%) 52 | 3 81 73 Regions Visited 2 Branch Regions . Pre-discovered Areas . | . . . Known Exits Taken . | . . . Unknown Exits Taken 2 | 1 1 . Scrap Searched . | . . . Spaces Dug 4 | . . 4 Terrain Destroyed 56 | . . 56 Melee 2 | . . 2 Projectile 8 | . . 8 AOE 46 | . . 46 Terrain Rammed . | . . . Walls Destroyed . | . . . Machines Disabled . | . . . Actions | -11 -10 -9 --------- Run | Yrd Mat Mat Total 3084 | 46 1010 2028 Wait 181 | . 39 142 Move 2449 | 34 841 1574 Hop . | . . . Pick Up 77 | 6 16 55 Fast Attach 10 | . 1 9 Attach 32 | 6 8 18 Detach 2 | . 1 1 Swap 51 | . 16 35 Drop 48 | . 7 41 Fire 209 | . 67 142 Melee 11 | . . 11 Ram 1 | . 1 . Kick . | . . . Crush . | . . . Escape Stasis . | . . . Rewire . | . . . Trap . | . . . Miscellaneous 13 | . 13 . Route ------- -11/Scrapyard -10/Materials (discovered 4 exits: *Mat x2 / [*Min x2]) -9/Materials (discovered 4 exits: *Mat x2 / [*Min x2]) History --------- Turn | Location | Event 9 | -11/Scrapyard | Discovered new exit (range 15) 50 | -11/Scrapyard | Entered Materials 272 | -10/Materials | Discovered new exit (range 16) 331 | -10/Materials | Build established: Mutant 742 | -10/Materials | Discovered new exit (range 12) 868 | -10/Materials | Discovered new exit (range 8) 1046 | -10/Materials | Lost 3 parts (1u2w) 1566 | -10/Materials | Discovered new exit (range 16) 1609 | -10/Materials | Repaired Ion Engine 1637 | -10/Materials | Entered another Materials area 1637 | -9/Materials | Evolved 2 slots: Power x1, Utility x1 1802 | -9/Materials | Repaired Wheel 1828 | -9/Materials | Discovered new exit (range 13) 2467 | -9/Materials | Discovered new exit (range 13) 2708 | -9/Materials | Core integrity fell below 50% 2733 | -9/Materials | Lost 5 parts (2n1u2w) 3483 | -9/Materials | Build established: Scavenger-Mutant 3521 | -9/Materials | Discovered new exit (range 4) 3546 | -9/Materials | Identified exit to Materials 3784 | -9/Materials | Build established: Mutant 4094 | -9/Materials | Build established: Scavenger-Mutant 4433 | -9/Materials | Build established: Mutant 4766 | -9/Materials | Core integrity fell below 20% 5172 | -9/Materials | Repaired Imp. Ion Engine 5305 | -9/Materials | Discovered new exit (range 9) 5386 | -9/Materials | Destroyed by G-34 Mercenary with Small Laser Last Messages --------------- SECURING TERMINAL." 05340_ ALERT: Hostiles spotted, dispatching reinforcements to Terminal M001. 05363_ Destroyed Hover Unit. 05363_ Destroyed Visual Processing Unit. 05363_ W-16 Scout system corrupted by crushing effect. 05363_ Sensor Array fried. 05363_ Hover Unit fried. 05363_ W-16 Scout destroyed. 05365_ Acquired 24 matter. 05382_ G-34 Mercenary suffers critical hit (Smash). 05382_ Destroyed Heat Sink. 05382_ G-34 Mercenary system corrupted by crushing effect. 05382_ G-34 Mercenary knocked back. 05384_ Destroyed Heat Sink. 05384_ G-34 Mercenary system corrupted by crushing effect. Map ----- +----------------------------------------------------+ | #""" #???????????????????????##"""######????? | | #""" #??????????????????????##"!!!"## #?? # | | + *%[ #??????????????????????#"" ""# # # | | #""" #??????????????????????# # + # | | #""" #??????????????????????# < + # "# | | #""" #???????????????######## # #?? T# | | # #???????????????#[[!!!!# ## #????? | | ##########???????????????#[[!!!!## ### #????? | | ##???????????????????????# ### ####+#####? | | ###############?????????## ### # #? | | # # #?######### + """"" #? | | # """ # T #?# """ # # """"" #? | | # """ # #?# """ # # """"" #? | | # """ # #?# """ # u ###+###### =#? | | # # #?# # # ## """"" #? | | # # #?# / # ## """"" #? | | ###+######+####?######### # ## """"" #? | | % ###########t # ## #? | | # #####?#####? | | % # #??????????? | | ###################### # #??????????? | | ???#=#???????????????# # #??????????? | | ????##???????????????# u # #??????????? | | ?????????????????????# ## #??????????? | | ?????????????????????# ## #??????????? | | #????????????????????# @ ##########??????????? | | #????????????????????# g ##+#???????????????????? | | #????????????????????# g #??????????????????????? | | #????????????????????# #??????????????????????? | | #????????????????????# #??????????????????????? | | #????????????????????# #??????????????????????? | | #????????????????????# #??????????????????????? | | #????????????????????# #??????????????????????? | | #???????????????????? #??????????????????????? | | #???????????????????? ???????????????????????? | | #??????????????????? ???????????????????????? | | #???????????????????## ???????????????????????? | | #????????????????????# ????????????????????????? | | #???????????????????????????????????????????????? | | #???????????????????????????????????????????????? | | #???????????????????????????????????????????????? | | #???????????????????????????????????????????????? | | #???????????????????????????????????????????????? | | #???????????????????????????????????????????????? | | #???????????????????????????????????????????????? | | #???????????????????????????????????????????????? | | #???????????????????????????????????????????????? | | #???????????????????????????????????????????????? | | #???????????????????????????????????????????????? | | #???????????????????????????????????????????????? | +----------------------------------------------------+ Best States ------------- Heat Dissipation 28 Energy Generation 19 Energy Capacity 430 Matter Stores 450 Matter Capacity 450 Sight Range 16 Robot Scan Range 14 Terrain Scan Density 10 Additional Mass Support 6 Evasion (%) 50 Recoil Reduction 2 Item Schematics ----------------- Imp. EM Shotgun | -9/Materials | Scanalyzed Assault Rifle | -9/Materials | Scanalyzed Hvy. Assault Rifle | -9/Materials | Scanalyzed Beam Cannon | -9/Materials | Scanalyzed Plasma Cutter | -9/Materials | Scanalyzed Welding Torch | -9/Materials | Scanalyzed Robot Schematics ------------------ None Fabricated ------------ Nothing Alien Tech Used ----------------- None Achievements -------------- Everything Is Under Control Risk Taker Safety First Shopping List Challenges ------------ None Game ------ Seed FocalBoreRecalibrator Manual? 0 Play Time 01:06:43 Cumulative 3.3 hours Start 2024.04.05 @ 05:01:12 End 2024.04.05 @ 06:05:57 Sessions 1 Manual Loads 0 Difficulty Rogue Special Mode None Game No. 6 Rogue 6 Adventurer 0 Explorer 0 Win Type - Total 0 Types 0/0/0/0/0/0/0/0/0 Lore% 1 Gallery% 6 Achievement% 6 Wizard Run 0 Options --------- Layout 2 ASCII 0 Keyboard 0 Movement Mouse Keybinds 0 Fullscreen 1 Font 32/SmallcapsGlow Map View 50x44 Zoom Use 0% Tactical HUD 1 Map Filters NONE Filters NONE Steam 1 RUN: 21256e9e-6d0e-4903-992b-b746ab27d579